{"text_format":"1","workbook":"xlsx","n_sheets":4,"sheets":["Auszubildende","Vorlage","X001","X002"],"not_rendered":{"charts":0,"images":0,"macros":1,"external_links":0,"defined_names":0,"comments":0,"pivot_tables":0},"unopened":[],"bounds":{"document_bytes":16777216,"sheet_cells":100000,"rows_first":2000,"rows_last":500,"rows_between":2000,"halvings":0,"cell_chars":16384,"cell_head_chars":4096},"cells_cut":0,"cells_raw":0,"read":"whole","date_system":"1900"}

{"sheet":"Auszubildende","index":0,"n_rows":16,"n_cols":2,"rows_kept":16,"cut":false,"hidden":false,"merged":[]}
["Prüflingsnummer","Vor- und Familienname"]
["X001","Max, Muster1"]
["X0023","Max, Muster2"]
["X003","Max, Muster3"]
["X004","Max, Muster4"]
["X005","Max, Muster5"]
["X006","Max, Muster6"]
["X007","Max, Muster7"]
["X008","Max, Muster8"]
["X009","Max, Muster9"]
["X010","Max, Muster10"]
["X011","Max, Muster11"]
["X012","Max, Muster12"]
["X013","Max, Muster13"]
["X014","Max, Muster14"]
["X015","Max, Muster15"]

{"sheet":"Vorlage","index":1,"n_rows":28,"n_cols":13,"rows_kept":28,"cut":false,"hidden":false,"merged":[[0,0,1,5],[0,6,0,12],[1,6,1,12],[2,0,3,5],[2,6,2,12],[3,6,3,12],[20,0,20,1],[4,0,4,5],[4,6,4,12],[6,0,7,1],[6,2,6,4],[6,6,6,8],[6,10,6,12],[7,2,7,4],[7,6,7,8],[7,10,7,12],[8,2,8,4],[8,6,8,8],[8,10,8,12],[9,0,9,1],[15,0,15,1]]}
[null,null,null,null,null,null,"Vor- und Familiennamen:"]
[]
[null,null,null,null,null,null,"Prüflingsnummer:"]
[]
[]
[]
["Für die Bewertung der einzelnen\nBewertungsstellen ist folgende\nPunkteabstimmung anzuwenden:\nBewertung 10 bis 0 Punkte",null,"Praktischen Aufgabe 1",null,null,null,"Praktischen Aufgabe 2",null,null,null,"Praktischen Aufgabe 3"]
[null,null,"Baukörper aus Steinen,\nBauwerksabdichtungen,\nBeton und Stahlbeton",null,null,null,"Baugruben, Gräben,\nGründungen und Verbau",null,null,null,"2D-Darstellungen,\nParallelperspektiven,\nFreihandzeichnungen"]
[null,null,"EFH Rainer",null,null,null,"Erdgleiches\nSchlammsilo",null,null,null,"Betonfertigteil"]
["1. Konstruktion/Zeichenarbeit",null,"Punkte","Faktor","Punkte",null,"Punkte","Faktor","Punkte",null,"Punkte","Faktor","Punkte"]
["1.1","Techn. Richtigkeit",null,3.5,{"$f":"C11*D11","v":0},null,null,3.5,{"$f":"G11*H11","v":0},null,null,4,{"$f":"K11*L11","v":0}]
["1.2","Vollständigkeit",null,1,{"$f":"C12*D12","v":0},null,null,0.5,{"$f":"G12*H12","v":0},null,null,1.5,{"$f":"K12*L12","v":0}]
["1.3","Maßgenauigkeit",null,0,0,null,null,1,0,null,null,1,0]
["1.4","Gesamteindruck",null,1.5,0,null,null,1.5,0,null,null,2.5,0]
[]
["2. Beschriftung/Bemaßung"]
["2.1","Richtigkeit, Vollständigkeit",null,2,{"$f":"C17*D17","v":0},null,null,1.5,{"$f":"G17*H17","v":0},null,null,0,{"$f":"K17*L17","v":0}]
["2.2","An- und Zuordnung",null,0.5,{"$f":"C18*D18","v":0},null,null,0.5,{"$f":"G18*H18","v":0},null,null,0,{"$f":"K18*L18","v":0}]
["2.3","Fachspezifische Berechnung",null,0,0,null,null,0,0,null,null,0,0]
[]
["3. Normbeachtung"]
["3.1","Linienarten, Linienbreiten",null,0.5,{"$f":"C22*D22","v":0},null,null,0.5,{"$f":"G22*H22","v":0},null,null,1,{"$f":"K22*L22","v":0}]
["3.2","Buchstaben, Ziffern",null,0.5,{"$f":"C23*D23","v":0},null,null,0.5,{"$f":"G23*H23","v":0},null,null,0,{"$f":"K23*L23","v":0}]
["3.3","z.B. Baustoffe, Achsen, Koten usw.",null,0.5,0,null,null,0.5,0,null,null,0,0]
[]
[null,null,null,null,{"$f":"SUM(E11:E25)","v":0},null,null,null,{"$f":"SUM(I11:I25)","v":0},null,null,null,{"$f":"SUM(M11:M25)","v":0}]
[null,null,null,null,"1-3",null,null,null,"4-6",null,null,null,"7-9"]
[null,null,null,null,"Ergebnis",null,null,null,"Ergebnis",null,null,null,"Ergebnis"]

{"sheet":"X001","index":2,"n_rows":28,"n_cols":13,"rows_kept":28,"cut":false,"hidden":false,"merged":[[9,0,9,1],[15,0,15,1],[20,0,20,1],[8,2,8,4],[7,2,7,4],[8,6,8,8],[7,10,7,12],[8,10,8,12],[6,0,7,1],[6,2,6,4],[6,6,6,8],[6,10,6,12],[0,6,0,12],[2,6,2,12],[4,6,4,12],[4,0,4,5],[7,6,7,8],[0,0,1,5],[2,0,3,5],[1,6,1,12],[3,6,3,12]]}
[null,null,null,null,null,null,"Vor- und Familiennamen:"]
[null,null,null,null,null,null,{"$f":"Auszubildende!B2","v":"Max, Muster1"}]
[null,null,null,null,null,null,"Prüflingsnummer:"]
[null,null,null,null,null,null,{"$f":"Auszubildende!A2","v":"X001"}]
[]
[]
["Für die Bewertung der einzelnen\nBewertungsstellen ist folgende\nPunkteabstimmung anzuwenden:\nBewertung 10 bis 0 Punkte",null,"Praktischen Aufgabe 1",null,null,null,"Praktischen Aufgabe 2",null,null,null,"Praktischen Aufgabe 3"]
[null,null,{"$f":"Vorlage!C8","v":"Baukörper aus Steinen,\nBauwerksabdichtungen,\nBeton und Stahlbeton"},null,null,null,{"$f":"Vorlage!G8","v":"Baugruben, Gräben,\nGründungen und Verbau"},null,null,null,{"$f":"Vorlage!K8","v":"2D-Darstellungen,\nParallelperspektiven,\nFreihandzeichnungen"}]
[null,null,{"$f":"Vorlage!C9","v":"EFH Rainer"},null,null,null,{"$f":"Vorlage!G9","v":"Erdgleiches\nSchlammsilo"},null,null,null,{"$f":"Vorlage!K9","v":"Betonfertigteil"}]
["1. Konstruktion/Zeichenarbeit",null,"Punkte","Faktor","Punkte",null,"Punkte","Faktor","Punkte",null,"Punkte","Faktor","Punkte"]
["1.1","Techn. Richtigkeit",null,{"$f":"Vorlage!D11","v":3.5},{"$f":"C11*D11","v":0},null,null,{"$f":"Vorlage!H11","v":3.5},{"$f":"G11*H11","v":0},null,null,{"$f":"Vorlage!L11","v":4},{"$f":"K11*L11","v":0}]
["1.2","Vollständigkeit",null,{"$f":"Vorlage!D12","v":1},{"$f":"C12*D12","v":0},null,null,{"$f":"Vorlage!H12","v":0.5},{"$f":"G12*H12","v":0},null,null,{"$f":"Vorlage!L12","v":1.5},{"$f":"K12*L12","v":0}]
["1.3","Maßgenauigkeit",null,{"$f":"Vorlage!D13","v":0},0,null,null,{"$f":"Vorlage!H13","v":1},0,null,null,{"$f":"Vorlage!L13","v":1},0]
["1.4","Gesamteindruck",null,{"$f":"Vorlage!D14","v":1.5},0,null,null,{"$f":"Vorlage!H14","v":1.5},0,null,null,{"$f":"Vorlage!L14","v":2.5},0]
[]
["2. Beschriftung/Bemaßung"]
["2.1","Richtigkeit, Vollständigkeit",null,{"$f":"Vorlage!D17","v":2},{"$f":"C17*D17","v":0},null,null,{"$f":"Vorlage!H17","v":1.5},{"$f":"G17*H17","v":0},null,null,{"$f":"Vorlage!L17","v":0},{"$f":"K17*L17","v":0}]
["2.2","An- und Zuordnung",null,{"$f":"Vorlage!D18","v":0.5},{"$f":"C18*D18","v":0},null,null,{"$f":"Vorlage!H18","v":0.5},{"$f":"G18*H18","v":0},null,null,{"$f":"Vorlage!L18","v":0},{"$f":"K18*L18","v":0}]
["2.3","Fachspezifische Berechnung",null,{"$f":"Vorlage!D19","v":0},0,null,null,{"$f":"Vorlage!H19","v":0},0,null,null,{"$f":"Vorlage!L19","v":0},0]
[]
["3. Normbeachtung"]
["3.1","Linienarten, Linienbreiten",null,{"$f":"Vorlage!D22","v":0.5},{"$f":"C22*D22","v":0},null,null,{"$f":"Vorlage!H22","v":0.5},{"$f":"G22*H22","v":0},null,null,{"$f":"Vorlage!L22","v":1},{"$f":"K22*L22","v":0}]
["3.2","Buchstaben, Ziffern",null,{"$f":"Vorlage!D23","v":0.5},{"$f":"C23*D23","v":0},null,null,{"$f":"Vorlage!H23","v":0.5},{"$f":"G23*H23","v":0},null,null,{"$f":"Vorlage!L23","v":0},{"$f":"K23*L23","v":0}]
["3.3","z.B. Baustoffe, Achsen, Koten usw.",null,{"$f":"Vorlage!D24","v":0.5},0,null,null,{"$f":"Vorlage!H24","v":0.5},0,null,null,{"$f":"Vorlage!L24","v":0},0]
[]
[null,null,null,null,{"$f":"SUM(E11:E25)","v":0},null,null,null,{"$f":"SUM(I11:I25)","v":0},null,null,null,{"$f":"SUM(M11:M25)","v":0}]
[null,null,null,null,"1-3",null,null,null,"4-6",null,null,null,"7-9"]
[null,null,null,null,"Ergebnis",null,null,null,"Ergebnis",null,null,null,"Ergebnis"]

{"sheet":"X002","index":3,"n_rows":28,"n_cols":13,"rows_kept":28,"cut":false,"hidden":false,"merged":[[0,0,1,5],[0,6,0,12],[1,6,1,12],[2,0,3,5],[2,6,2,12],[3,6,3,12],[20,0,20,1],[4,0,4,5],[4,6,4,12],[6,0,7,1],[6,2,6,4],[6,6,6,8],[6,10,6,12],[7,2,7,4],[7,6,7,8],[7,10,7,12],[8,2,8,4],[8,6,8,8],[8,10,8,12],[9,0,9,1],[15,0,15,1]]}
[null,null,null,null,null,null,"Vor- und Familiennamen:"]
[null,null,null,null,null,null,{"$f":"Auszubildende!B3","v":"Max, Muster2"}]
[null,null,null,null,null,null,"Prüflingsnummer:"]
[null,null,null,null,null,null,{"$f":"Auszubildende!A3","v":"X0023"}]
[]
[]
["Für die Bewertung der einzelnen\nBewertungsstellen ist folgende\nPunkteabstimmung anzuwenden:\nBewertung 10 bis 0 Punkte",null,"Praktischen Aufgabe 1",null,null,null,"Praktischen Aufgabe 2",null,null,null,"Praktischen Aufgabe 3"]
[null,null,{"$f":"Vorlage!C8","v":"Baukörper aus Steinen,\nBauwerksabdichtungen,\nBeton und Stahlbeton"},null,null,null,{"$f":"Vorlage!G8","v":"Baugruben, Gräben,\nGründungen und Verbau"},null,null,null,{"$f":"Vorlage!K8","v":"2D-Darstellungen,\nParallelperspektiven,\nFreihandzeichnungen"}]
[null,null,{"$f":"Vorlage!C9","v":"EFH Rainer"},null,null,null,{"$f":"Vorlage!G9","v":"Erdgleiches\nSchlammsilo"},null,null,null,{"$f":"Vorlage!K9","v":"Betonfertigteil"}]
["1. Konstruktion/Zeichenarbeit",null,"Punkte","Faktor","Punkte",null,"Punkte","Faktor","Punkte",null,"Punkte","Faktor","Punkte"]
["1.1","Techn. Richtigkeit",null,{"$f":"Vorlage!D11","v":3.5},{"$f":"C11*D11","v":0},null,null,{"$f":"Vorlage!H11","v":3.5},{"$f":"G11*H11","v":0},null,null,{"$f":"Vorlage!L11","v":4},{"$f":"K11*L11","v":0}]
["1.2","Vollständigkeit",null,{"$f":"Vorlage!D12","v":1},{"$f":"C12*D12","v":0},null,null,{"$f":"Vorlage!H12","v":0.5},{"$f":"G12*H12","v":0},null,null,{"$f":"Vorlage!L12","v":1.5},{"$f":"K12*L12","v":0}]
["1.3","Maßgenauigkeit",null,{"$f":"Vorlage!D13","v":0},0,null,null,{"$f":"Vorlage!H13","v":1},0,null,null,{"$f":"Vorlage!L13","v":1},0]
["1.4","Gesamteindruck",null,{"$f":"Vorlage!D14","v":1.5},0,null,null,{"$f":"Vorlage!H14","v":1.5},0,null,null,{"$f":"Vorlage!L14","v":2.5},0]
[]
["2. Beschriftung/Bemaßung"]
["2.1","Richtigkeit, Vollständigkeit",null,{"$f":"Vorlage!D17","v":2},{"$f":"C17*D17","v":0},null,null,{"$f":"Vorlage!H17","v":1.5},{"$f":"G17*H17","v":0},null,null,{"$f":"Vorlage!L17","v":0},{"$f":"K17*L17","v":0}]
["2.2","An- und Zuordnung",null,{"$f":"Vorlage!D18","v":0.5},{"$f":"C18*D18","v":0},null,null,{"$f":"Vorlage!H18","v":0.5},{"$f":"G18*H18","v":0},null,null,{"$f":"Vorlage!L18","v":0},{"$f":"K18*L18","v":0}]
["2.3","Fachspezifische Berechnung",null,{"$f":"Vorlage!D19","v":0},0,null,null,{"$f":"Vorlage!H19","v":0},0,null,null,{"$f":"Vorlage!L19","v":0},0]
[]
["3. Normbeachtung"]
["3.1","Linienarten, Linienbreiten",null,{"$f":"Vorlage!D22","v":0.5},{"$f":"C22*D22","v":0},null,null,{"$f":"Vorlage!H22","v":0.5},{"$f":"G22*H22","v":0},null,null,{"$f":"Vorlage!L22","v":1},{"$f":"K22*L22","v":0}]
["3.2","Buchstaben, Ziffern",null,{"$f":"Vorlage!D23","v":0.5},{"$f":"C23*D23","v":0},null,null,{"$f":"Vorlage!H23","v":0.5},{"$f":"G23*H23","v":0},null,null,{"$f":"Vorlage!L23","v":0},{"$f":"K23*L23","v":0}]
["3.3","z.B. Baustoffe, Achsen, Koten usw.",null,{"$f":"Vorlage!D24","v":0.5},0,null,null,{"$f":"Vorlage!H24","v":0.5},0,null,null,{"$f":"Vorlage!L24","v":0},0]
[]
[null,null,null,null,{"$f":"SUM(E11:E25)","v":0},null,null,null,{"$f":"SUM(I11:I25)","v":0},null,null,null,{"$f":"SUM(M11:M25)","v":0}]
[null,null,null,null,"1-3",null,null,null,"4-6",null,null,null,"7-9"]
[null,null,null,null,"Ergebnis",null,null,null,"Ergebnis",null,null,null,"Ergebnis"]